{"text_format":"1","workbook":"xlsx","n_sheets":3,"sheets":["Instrucciones","R.PROVEEDOR","Cálculos"],"not_rendered":{"charts":0,"images":9,"macros":1,"external_links":0,"defined_names":2,"comments":1,"pivot_tables":0},"unopened":[],"bounds":{"document_bytes":16777216,"sheet_cells":100000,"rows_first":2000,"rows_last":500,"rows_between":2000,"halvings":0,"cell_chars":16384,"cell_head_chars":4096},"cells_cut":0,"cells_raw":0,"read":"whole","date_system":"1900"}

{"sheet":"Instrucciones","index":0,"n_rows":144,"n_cols":10,"rows_kept":144,"cut":false,"hidden":false,"merged":[[142,2,142,8],[143,1,143,9],[2,9,2,10],[3,9,3,10],[4,9,4,10],[1,1,4,1],[1,9,1,10],[1,2,1,8],[2,2,2,8],[3,2,4,8],[7,1,7,8]]}
[]
[null,null,"MACROPROCESO DE APOYO",null,null,null,null,null,null,"CÓDIGO: ABSr145"]
[null,null,"PROCESO GESTIÓN BIENES Y SERVICIOS ",null,null,null,null,null,null,"VERSIÓN: 6"]
[null,null,"REEVALUACIÓN DE PROVEEDORES",null,null,null,null,null,null,"VIGENCIA: 2025-05-23"]
[null,null,null,null,null,null,null,null,null,"PÁGINA: 1 de 2"]
[]
[]
[null,"REEVALUACIÓN DE PROVEEDORES"]
[]
[]
[]
[]
[]
[]
[]
[]
[]
[]
[]
[]
[]
[]
[]
[]
[]
[]
[]
[]
[]
[]
[]
[]
[]
[]
[]
[]
[]
[]
[]
[]
[]
[]
[]
[]
[]
[]
[]
[]
[]
[]
[]
[]
[]
[]
[]
[]
[]
[]
[]
[]
[]
[]
[]
[]
[]
[]
[]
[]
[]
[]
[]
[]
[]
[]
[]
[]
[]
[]
[]
[]
[]
[]
[]
[]
[]
[]
[]
[]
[]
[]
[]
[]
[]
[]
[]
[]
[]
[]
[]
[]
[]
[]
[]
[]
[]
[]
[]
[]
[]
[]
[]
[]
[]
[]
[]
[]
[]
[]
[]
[]
[]
[]
[]
[]
[]
[]
[]
[]
[]
[]
[]
[]
[]
[]
[]
[]
[]
[]
[]
[]
[]
[]
[null,null,"  Diagonal 18 No. 20-29 Fusagasugá – Cundinamarca                                                                                                   \n  Teléfono: (601) 8281483 Línea Gratuita: 018000180414                                                                                                                              \nwww.ucundinamarca.edu.co E-mail: info@ucundinamarca.edu.co \n    NIT: 890.680.062-2"]
[null,"Documento controlado por el Sistema de Gestión de la Calidad\nAsegúrese que corresponde a la última versión consultando el Portal Institucional\n"]

{"sheet":"R.PROVEEDOR","index":1,"n_rows":71,"n_cols":9,"rows_kept":71,"cut":false,"hidden":false,"merged":[[60,2,60,4],[53,1,53,2],[55,3,55,4],[50,1,50,6],[51,1,51,8],[41,7,43,7],[48,3,48,5],[41,8,43,8],[42,3,42,5],[43,3,43,5],[18,1,18,8],[13,1,13,8],[16,1,16,2],[16,3,16,8],[17,1,17,8],[15,1,15,2],[15,3,15,8],[14,1,14,2],[14,3,14,8],[38,3,38,5],[39,3,39,5],[27,7,30,7],[27,8,30,8],[27,2,30,2],[27,3,27,5],[28,3,28,5],[29,3,29,5],[30,3,30,5],[31,3,31,5],[46,3,46,5],[25,3,25,5],[20,1,21,5],[20,6,20,8],[22,1,48,1],[22,2,25,2],[32,8,39,8],[32,7,39,7],[40,3,40,5],[32,3,32,5],[33,3,33,5],[34,3,34,5],[35,3,35,5],[36,3,36,5],[37,3,37,5],[19,1,19,8],[22,7,25,7],[22,8,25,8],[22,3,22,5],[23,3,23,5],[24,3,24,5],[41,2,43,2],[44,3,44,5],[41,3,41,5],[52,1,52,2],[52,3,52,4],[47,3,47,5],[1,1,4,1],[1,2,1,6],[12,1,12,2],[1,7,1,8],[2,2,2,6],[2,7,2,8],[3,2,4,6],[3,7,3,8],[4,7,4,8],[8,1,8,8],[11,1,11,2],[11,3,11,8],[53,5,53,8],[64,1,64,8],[45,2,46,2],[45,3,45,5],[49,3,49,5],[52,5,52,8],[54,1,54,2],[54,3,54,4],[44,7,48,7],[44,8,48,8],[61,1,61,8],[57,1,57,4],[57,5,57,8],[58,2,58,4],[58,5,60,8],[59,2,59,4],[70,0,70,8],[7,1,7,8],[9,1,9,2],[9,3,9,8],[10,1,10,2],[10,3,10,8],[53,3,53,4],[12,3,12,8],[69,0,69,10],[68,0,68,8],[65,1,65,8],[55,1,55,2],[63,1,63,8],[26,3,26,5],[32,2,39,2],[54,5,55,8]]}
[]
[null,null,"MACROPROCESO DE APOYO",null,null,null,null,"CÓDIGO: ABSr145"]
[null,null,"PROCESO GESTIÓN BIENES Y SERVICIOS ",null,null,null,null,"VERSIÓN: 6"]
[null,null,"REEVALUACIÓN DE PROVEEDORES",null,null,null,null,"VIGENCIA: 2025-05-23"]
[null,null,null,null,null,null,null,"PÁGINA: 2 de 2"]
[]
[null,"Código de la dependencia."]
[null,"REEVALUACIÓN DE PROVEEDORES DE:"]
[null,"1. DATOS DEL PROVEEDOR"]
[null,"PROVEEDOR",null,"XXXXX (Nombre/Razón social del proveedor referenciada en el contrato/orden contractual/convenio/orden de compra)"]
[null,"No. IDENTIFICACIÓN",null,"XXXXX (NIT/CC del proveedor referenciada en el contrato/orden contractual/convenio/orden de compra)"]
[null,"CORREO ELECTRÓNICO:",null,"XXXXX (Dirección de correo del proveedor referenciada en el contrato/orden contractual/convenio/orden de compra)"]
[null,"FECHA DE REEVALUACIÓN: ",null,"AAAA-MM-DD"]
[null,"2. DATOS DEL CONTRATO / ORDEN CONTRACTUAL"]
[null,"OBJETO:",null,"XXXXX (Diligenciar con la información del contrato/orden contractual/convenio/orden de compra)"]
[null,"NUMERO DEL CONTRATO: ",null,"SIGLA-NUMERO-AÑO"]
[null,"SUPERVISOR:",null,"XXXXX (Diligenciar con la información del contrato/orden contractual/convenio/orden de compra)"]
[null,"3. FACTORES DE DESEMPEÑO"]
[null,"Señor supervisor, realice la reevaluación al proveedor según el desempeño frente a los criterios establecidos, así mismo recuerde ser objetivo en el momento de evaluar, toda vez que este es un insumo para la gestión de proveedores y emisión de Certificados de Cumplimiento Contractual. \nTenga en cuenta que las fallas y/o incumplimientos de un contratista imputables a la Universidad, o derivadas de situaciones de fuerza mayor o caso fortuito, NO deben ser consideradas en la Reevaluación de desempeño del proveedor. Sin embargo, se debe dar aplicación a las cláusulas excepcionales pertinentes siempre y cuando se encuentren pactadas de acuerdo con la Resolución No. 206 de 2012, ARTÍCULO 29- CLÁUSULAS EXCEPCIONALES. "]
[null,"Asignación del puntaje: Por favor señale si el criterio de evaluación aplica para calificación, para ello en la columna \"¿Cumple?\" indique si el proveedor Cumplió, Cumplió parcialmente o No cumplió con el criterio de evaluación. En caso de No aplicar el criterio, seleccione N/A para omitir el criterio en la escala de calificación."]
[null,"4. CRITERIOS DE EVALUACIÓN",null,null,null,null,"PUNTAJE"]
[null,null,null,null,null,null,"¿Cumple?","Máximo","Calificación"]
[null,"Etapa contractual","Oportunidad de Entrega y calidad del bien","Disponibilidad total del bien o bienes descritos en la orden contractual o contrato.",null,null,null,40,{"$f":"+Cálculos!I14","v":0}]
[null,null,null,"Los bienes entregados corresponden a los descritos en la orden contractual o contrato en cuanto a especificaciones técnicas y cantidad."]
[null,null,null,"Los bienes son entregados en buenas condiciones fìsicas y su apariencia satisface las expectativas en calidad."]
[null,null,null,"Satisfacción con la instalación de los equipos y respectiva capacitación en el manejo de los mismos. (En caso de aplicar)"]
[null,null,"Cumplimiento en los plazos de entrega","Los bienes son entregados dentro de la fecha pactada en el cronograma de ejecución de la orden contractual o contrato originalmente suscrito, o en la nueva fecha pactada según la/s prórroga/s (y  la/s prórroga/s no fueron suscritas por ocasión de las acciones u omisiones imputables al Contratista).  ",null,null,null,15,{"$f":"+Cálculos!I16","v":0}]
[null,null,"Logística y calidad del servicio","Disponibilidad total del servicio descrito en la orden contractual o contrato.",null,null,null,40,{"$f":"+Cálculos!I23","v":0}]
[null,null,null,"Los servicios prestados corresponden a los descritos en la orden contractual o contrato en cuanto a especificaciones técnicas y cantidad."]
[null,null,null,"El servicio prestado satisface las expectativas en calidad."]
[null,null,null,"Durante la ejecución del servicio contó con personal técnico calificado para cumplir las obligaciones propias del servicio, por ejemplo: soporte, capacitaciones, logística, transporte, configuración del servicio, etc."]
[null,null,"Cumplimiento en los plazos de entrega","Los servicios son prestados dentro de la fecha pactada en el cronograma de ejecución de la orden contractual o contrato originalmente suscrito, o en la nueva fecha pactada según la/s prórroga/s (y  la/s prórroga/s no fueron suscritas por ocasión de las acciones u omisiones imputables al Contratista). ",null,null,null,15,{"$f":"+Cálculos!I25","v":0}]
[null,null,"Oportunidad de Entrega y calidad de la obra","Dirección de la obra: ¿Contó la obra con un residente permanente que permitiera tomar decisiones técnicas en la obra?",null,null,null,40,{"$f":"+Cálculos!I36","v":0}]
[null,null,null,"Logística: ¿Contó la obra con la logística necesaria para cumplir con el objeto, tales como transporte, equipos y herramientas menores?"]
[null,null,null,"Personal: ¿Durante la ejecución de la obra contó con personal requerido en los terminos para cumplir las actividades propias de la obra?"]
[null,null,null,"Pruebas técnicas: ¿La obra contó con los ensayos de los materiales mediante normas técnicas?"]
[null,null,null,"Equipos: ¿se contó con los equipos adecuados para las tareas propias de la construcción durante la ejecución de la obra?"]
[null,null,null,"Materiales: ¿Durante la ejecución de la obra pudo verificar que los materiales usados presentaron las especificaciones técnicas requeridas y evidenciaron su calidad?"]
[null,null,null,"Seguridad: ¿El personal empleado tuvo la indumentaria necesaria para garantizar su seguridad?"]
[null,null,null,"Especificaciones: ¿La obra entregada es acorde con los requerimientos descritos en la orden contractual o contrato en cuanto a especificaciones técnicas y cantidad?"]
[null,null,"Cumplimiento en los plazos de entrega","Se cumplió con las entregas de obra parciales y/o totales de acuerdo con lo pactado en el cronograma de ejecución de la orden contractual o contrato originalmente suscrito, o en la nueva fecha pactada según la/s prórroga/s (y  la/s prórroga/s no fueron suscritas por ocasión de las acciones u omisiones imputables al Contratista). ",null,null,null,15,{"$f":"+Cálculos!I38","v":0}]
[null,null,"Atención al cliente","Se cumplió con la entrega de los bienes, servicios u obra sin presentar incidentes ocasionados por acciones u omisiones imputables al contratista.",null,null,null,15,{"$f":"+Cálculos!I44","v":0}]
[null,null,null,"Dio oportuna respuesta a las solicitudes o reclamos realizados por la supervisión. (En caso de aplicar)"]
[null,null,null,"Las garantías del bien, servicio u obra fueron atendidas satisfactoriamente. (En caso de aplicar)"]
[null,null,"Sistema de Gestión de Seguridad y Salud en el trabajo \nSG-SST","Conocer, entender, comunicar y cumplir lo establecido en la Resolución 185 de 2016  “Por la cual se adopta el Sistema de Gestión de Seguridad y Salud en el trabajo SG-SST y actualiza la Política de Seguridad y Salud en el trabajo de la Universidad de Cundinamarca” y Resolución 073 de 2020 \"Por medio de la cual se actualiza la Resolución 185 del 12 de octubre de 2016”. Conocer y dar estricto cumplimiento al Manual para contratistas de la Universidad de Cundinamarca (ESG-SST-M011).",null,null,null,20,{"$f":"+Cálculos!I50","v":0}]
[null,null,"Sistema de Gestión Antisoborno\nSGAS","Conocer, entender, comunicar y cumplir lo establecido en la Resolución No. 080 del 21 de julio de 2023 “Por la cual se adoptan los lineamientos globales para la gestión anticorrupción, antifraude y antisoborno de la universidad de Cundinamarca” y la Resolución No. 079 del 02 de agosto de 2024 “Por el cual se adopta y se definen roles, responsabilidades y competencias del sistema de gestión antisoborno de la universidad de Cundinamarca”."]
[null,null,null,"Cumplimiento del ESG-GAS-F005 Compromiso anticorrupción y antisoborno para proveedores y terceros. Se verifica que el proveedor ha cumplido con las disposiciones contractuales relativas a la prevención de soborno (no ofrecer, ni dar sobornos, ni ninguna otra forma de halago a ningún funcionario público en relación con su propuesta, con el proceso de contratación, ni con la ejecución del contrato que pueda celebrarse como resultado de su propuesta). Así mismo, durante la ejecución se hace revisión de antecedentes por prácticas de soborno en órganos de control. "]
[null,null,"Sistema de Gestión Ambiental \nSGA","Conocer, entender, comunicar y cumplir lo establecido en la Resolución 155 de 2018 \"Por la cual se adopta la Política de Gestión Ambiental de la Universidad de Cundinamarca\". Conocer y dar estricto cumplimiento al Manual para contratistas de la Universidad de Cundinamarca (ESG-SST-M011) en especial los criterios aplicables al SGA.  (En caso de aplicar)"]
[null,null,"Sistema de Gestión Seguridad de la Información\nSGSI","Conocer, entender, comunicar y cumplir lo establecido en la Resolución 091 del 8 de agosto de 2023 “Por la cual se establecen los lineamientos de protección de datos Personales de los Titulares de la Universidad de Cundinamarca” y la Resolución 092 del 8 de agosto de 2023 “Por la cual adopta el Sistema de Gestión de Seguridad de la Información – SGSI y se establecen lineamientos, objetivos y alcance en la Universidad de Cundinamarca”. Conocer y dar estricto cumplimiento al Manual lineamiento de seguridad de la información con relación a los proveedores y/o terceros (ESG-SSI-M013) y Manual para contratistas de la Universidad de Cundinamarca (ESG-SST-M011) en especial los criterios aplicables al SGSI. (En caso de aplicar)"]
[null,"Etapa post-contractual","Oportunidad documentos de trámite de pago","Entrega oportuna de los documentos y eficiente diligenciamiento (Cuenta de cobro o factura; planilla de pago de salud, pensión y ARL y/o certificado de aportes parafiscales; fotocopia de la cédula del representante legal; póliza de cumplimiento incluyendo anexos por ampliación de cobertura cuando aplique; RUT; Acta de entrega o Informe/s periódico/s de las actividades del contratista; suscripción del acta de liquidación cuando aplique y demás documentos exigidos para pago). ",null,null,null,10,{"$f":"+Cálculos!I52","v":0}]
[null,"TOTAL PUNTOS:",null,null,null,null,null,100,{"$f":"IF(SUM(I23:I50)>100,\"No permitido\",SUM(I23:I50))","v":0}]
[null,"5. INTERPRETACIÓN DE LA REEVALUACIÓN DEL PROVEEDOR"]
[null,"CALIFICACIÓN",null,"RANGO DE PUNTAJE",null,"RESULTADO DE LA CALIFICACIÓN:"]
[null,"Desempeño Muy bueno",null,"Entre 90 y 100 puntos",null,{"$f":"IF(F55=\"Desempeño Deficiente\",\"INCUMPLIÓ\",IF(F55=\"Desempeño Bueno\",\"CUMPLIÓ\",IF(F55=\"Desempeño Muy bueno\",\"CUMPLIÓ\",IF(F55=\"\",\"\"))))","v":"INCUMPLIÓ"}]
[null,"Desempeño Bueno",null,"Entre 60 y 89 puntos",null,{"$f":"IF(I51<=59,\"Desempeño Deficiente\",IF(I51<=89,\"Desempeño Bueno\",IF(I51<=100,\"Desempeño Muy bueno\",IF(I51=\"No permitido\",\"\"))))","v":"Desempeño Deficiente"}]
[null,"Desempeño Deficiente",null,"Entre 0 y 59 puntos"]
[]
[null,"DATOS DEL SUPERVISOR:",null,null,null,"Observaciones del supervisor:"]
[null,"FIRMA:"]
[null,"NOMBRE:"]
[null,"CARGO:"]
[null,"Reporte en INTEGRADOC la reevaluación dentro de los 15 días calendario siguientes a la finalización del contrato u orden contractual. "]
[]
[null,"6. TENGA EN CUENTA"]
[null,"REEVALUACIÓN DE PROVEEDORES: Actividad que realizan los supervisores o interventores una vez finalizado el contrato en donde se evalúan diferentes criterios técnicos, administrativos, financieros, contables y jurídicos de acuerdo con el bien o servicio prestado. (Ley 1474 de 2011, artículo 84), (ISO 9001), (Resolución 170 de 2017 artículo 10, que modifica el artículo 33 de la resolución 206 de 2012) (ABSP18)."]
[null,"El proveedor puede hacer observación a su reevaluación dentro de los 5 días hábiles siguientes a la notificación de la misma y la observación deberá ser remitida al correo comprasudec@ucundinamarca.edu.co.  En caso de no recibir observación se entenderá que se encuentra conforme con la Reevaluación."]
[null,"Código Serie Documental (Ver Tabla de Retención Documental)."]
[]
["Diagonal 18 No. 20-29 Fusagasugá – Cundinamarca                                                                                                   \n  Teléfono (601) 8281483 Línea Gratuita 018000180414                                                                                                                              \nwww.ucundinamarca.edu.co   E-mail: info@ucundinamarca.edu.co \n    NIT: 890.680.062-2"]
[]
["Documento controlado por el Sistema de Gestión de la Calidad\nAsegúrese que corresponde a la última versión consultando el Portal Institucional"]

{"sheet":"Cálculos","index":2,"n_rows":52,"n_cols":9,"rows_kept":52,"cut":false,"hidden":true,"merged":[[18,7,21,7],[27,1,37,1],[27,2,34,2],[27,3,27,5],[27,7,34,7],[28,3,28,5],[29,3,29,5],[30,3,30,5],[31,3,31,5],[32,3,32,5],[33,3,33,5],[34,3,34,5],[35,2,35,5],[36,3,36,5],[37,2,37,6],[18,2,21,2],[18,3,18,5],[23,3,23,5],[24,2,24,6],[13,2,13,5],[50,1,51,1],[50,3,50,5],[51,2,51,6],[43,2,43,5],[44,3,44,5],[49,2,49,5],[40,1,43,1],[44,1,49,1],[45,3,45,5],[45,2,46,2],[1,1,1,3],[7,1,7,8],[9,2,12,2],[9,3,9,5],[9,7,12,7],[10,3,10,5],[11,3,11,5],[12,3,12,5],[9,1,15,1],[8,1,8,5],[44,7,48,7],[47,3,47,5],[48,3,48,5],[40,7,42,7],[14,3,14,5],[15,2,15,6],[40,2,42,2],[40,3,40,5],[41,3,41,5],[42,3,42,5],[19,3,19,5],[20,3,20,5],[21,3,21,5],[22,2,22,5],[17,1,17,5],[18,1,24,1]]}
[]
[null,"OPCIONES DE CUMPLIMIENTO DE LOS CRITERIOS"]
[null,"SI"]
[null,"NO"]
[null,"PARCIAL"]
[null,"N/A"]
[]
[null,"CÁLCULO AUTOMÁTICO DE PUNTAJES BIENES"]
[null,null,null,null,null,null,"¿Cumple?","Máximo","Calificación"]
[null,"PROVEEDOR DE BIENES","Oportunidad de Entrega y calidad del bien",1,null,null,{"$f":"+'R.PROVEEDOR'!G23","v":0},40,{"$f":"_xlfn.IFS(G10=\"SI\",$H$10/$G$14,G10=\"PARCIAL\",($H$10/$G$14)/2,G10=\"NO\",0)","v":{"$error":"#N/A"}}]
[null,null,null,2,null,null,{"$f":"+'R.PROVEEDOR'!G24","v":0},null,{"$f":"_xlfn.IFS(G11=\"SI\",$H$10/$G$14,G11=\"PARCIAL\",($H$10/$G$14)/2,G11=\"NO\",0)","v":{"$error":"#N/A"}}]
[null,null,null,3,null,null,{"$f":"+'R.PROVEEDOR'!G25","v":0},null,{"$f":"_xlfn.IFS(G12=\"SI\",$H$10/$G$14,G12=\"PARCIAL\",($H$10/$G$14)/2,G12=\"NO\",0)","v":{"$error":"#N/A"}}]
[null,null,null,4,null,null,{"$f":"+'R.PROVEEDOR'!G26","v":0},null,{"$f":"_xlfn.IFS(G13=\"SI\",$H$10/$G$14,G13=\"PARCIAL\",($H$10/$G$14)/2,G13=\"NO\",0)","v":{"$error":"#N/A"}}]
[null,null,null,null,null,null,{"$f":"COUNTIFS(G10:G13,\"SI\")+COUNTIFS(G10:G13,\"NO\")+COUNTIFS(G10:G13,\"PARCIAL\")","v":0},"Total",{"$f":"SUMIFS(I10:I13,G10:G13,\"SI\")+SUMIFS(I10:I13,G10:G13,\"PARCIAL\")","v":0}]
[null,null,"Cumplimiento en los plazos de entrega",1,null,null,{"$f":"+'R.PROVEEDOR'!G27","v":0},15,{"$f":"_xlfn.IFS(G15=\"SI\",H15,G15=\"PARCIAL\",(H15/2),G15=\"NO\",0)","v":{"$error":"#N/A"}}]
[null,null,null,null,null,null,null,"Total",{"$f":"IFERROR(+I15,0)","v":0}]
[]
[null,null,null,null,null,null,"¿Cumple?","Máximo","Calificación"]
[null,"PROVEEDOR DE SERVICIOS","Logística y calidad del servicio",1,null,null,{"$f":"+'R.PROVEEDOR'!G28","v":0},40,{"$f":"_xlfn.IFS(G19=\"SI\",$H$19/$G$23,G19=\"PARCIAL\",($H$19/$G$23)/2,G19=\"NO\",0)","v":{"$error":"#N/A"}}]
[null,null,null,2,null,null,{"$f":"+'R.PROVEEDOR'!G29","v":0},null,{"$f":"_xlfn.IFS(G20=\"SI\",$H$19/$G$23,G20=\"PARCIAL\",($H$19/$G$23)/2,G20=\"NO\",0)","v":{"$error":"#N/A"}}]
[null,null,null,3,null,null,{"$f":"+'R.PROVEEDOR'!G30","v":0},null,{"$f":"_xlfn.IFS(G21=\"SI\",$H$19/$G$23,G21=\"PARCIAL\",($H$19/$G$23)/2,G21=\"NO\",0)","v":{"$error":"#N/A"}}]
[null,null,null,4,null,null,{"$f":"+'R.PROVEEDOR'!G31","v":0},null,{"$f":"_xlfn.IFS(G22=\"SI\",$H$19/$G$23,G22=\"PARCIAL\",($H$19/$G$23)/2,G22=\"NO\",0)","v":{"$error":"#N/A"}}]
[null,null,null,null,null,null,{"$f":"COUNTIFS(G19:G22,\"SI\")+COUNTIFS(G19:G22,\"NO\")+COUNTIFS(G19:G22,\"PARCIAL\")","v":0},"Total",{"$f":"SUMIFS(I19:I22,G19:G22,\"SI\")+SUMIFS(I19:I22,G19:G22,\"PARCIAL\")","v":0}]
[null,null,"Cumplimiento en los plazos de entrega",1,null,null,{"$f":"+'R.PROVEEDOR'!G32","v":0},15,{"$f":"_xlfn.IFS(G24=\"SI\",H24,G24=\"PARCIAL\",(H24/2),G24=\"NO\",0)","v":{"$error":"#N/A"}}]
[null,null,null,null,null,null,null,"Total",{"$f":"IFERROR(+I24,0)","v":0}]
[]
[null,null,null,null,null,null,"¿Cumple?","Máximo","Calificación"]
[null,"PROVEEDOR DE OBRA","Oportunidad de Entrega y calidad de la obra",1,null,null,{"$f":"+'R.PROVEEDOR'!G33","v":0},40,{"$f":"_xlfn.IFS(G28=\"SI\",$H$28/$G$36,G28=\"PARCIAL\",($H$28/$G$36)/2,G28=\"NO\",0)","v":{"$error":"#N/A"}}]
[null,null,null,2,null,null,{"$f":"+'R.PROVEEDOR'!G34","v":0},null,{"$f":"_xlfn.IFS(G29=\"SI\",$H$28/$G$36,G29=\"PARCIAL\",($H$28/$G$36)/2,G29=\"NO\",0)","v":{"$error":"#N/A"}}]
[null,null,null,3,null,null,{"$f":"+'R.PROVEEDOR'!G35","v":0},null,{"$f":"_xlfn.IFS(G30=\"SI\",$H$28/$G$36,G30=\"PARCIAL\",($H$28/$G$36)/2,G30=\"NO\",0)","v":{"$error":"#N/A"}}]
[null,null,null,4,null,null,{"$f":"+'R.PROVEEDOR'!G36","v":0},null,{"$f":"_xlfn.IFS(G31=\"SI\",$H$28/$G$36,G31=\"PARCIAL\",($H$28/$G$36)/2,G31=\"NO\",0)","v":{"$error":"#N/A"}}]
[null,null,null,5,null,null,{"$f":"+'R.PROVEEDOR'!G37","v":0},null,{"$f":"_xlfn.IFS(G32=\"SI\",$H$28/$G$36,G32=\"PARCIAL\",($H$28/$G$36)/2,G32=\"NO\",0)","v":{"$error":"#N/A"}}]
[null,null,null,6,null,null,{"$f":"+'R.PROVEEDOR'!G38","v":0},null,{"$f":"_xlfn.IFS(G33=\"SI\",$H$28/$G$36,G33=\"PARCIAL\",($H$28/$G$36)/2,G33=\"NO\",0)","v":{"$error":"#N/A"}}]
[null,null,null,7,null,null,{"$f":"+'R.PROVEEDOR'!G39","v":0},null,{"$f":"_xlfn.IFS(G34=\"SI\",$H$28/$G$36,G34=\"PARCIAL\",($H$28/$G$36)/2,G34=\"NO\",0)","v":{"$error":"#N/A"}}]
[null,null,null,8,null,null,{"$f":"+'R.PROVEEDOR'!G40","v":0},null,{"$f":"_xlfn.IFS(G35=\"SI\",$H$28/$G$36,G35=\"PARCIAL\",($H$28/$G$36)/2,G35=\"NO\",0)","v":{"$error":"#N/A"}}]
[null,null,null,null,null,null,{"$f":"COUNTIFS(G28:G35,\"SI\")+COUNTIFS(G28:G35,\"NO\")+COUNTIFS(G28:G35,\"PARCIAL\")","v":0},"Total",{"$f":"SUMIFS(I28:I35,G28:G35,\"SI\")+SUMIFS(I28:I35,G28:G35,\"PARCIAL\")","v":0}]
[null,null,"Cumplimiento en los plazos de entrega",1,null,null,{"$f":"+'R.PROVEEDOR'!G41","v":0},15,{"$f":"_xlfn.IFS(G37=\"SI\",H37,G37=\"PARCIAL\",(H37/2),G37=\"NO\",0)","v":{"$error":"#N/A"}}]
[null,null,null,null,null,null,null,"Total",{"$f":"IFERROR(+I37,0)","v":0}]
[]
[null,null,null,null,null,null,"¿Cumple?","Máximo","Calificación"]
[null,null,"Atención al cliente",1,null,null,{"$f":"+'R.PROVEEDOR'!G42","v":0},15,{"$f":"_xlfn.IFS(G41=\"SI\",$H$41/$G$44,G41=\"PARCIAL\",($H$41/$G$44)/2,G41=\"NO\",0)","v":{"$error":"#N/A"}}]
[null,null,null,2,null,null,{"$f":"+'R.PROVEEDOR'!G43","v":0},null,{"$f":"_xlfn.IFS(G42=\"SI\",$H$41/$G$44,G42=\"PARCIAL\",($H$41/$G$44)/2,G42=\"NO\",0)","v":{"$error":"#N/A"}}]
[null,null,null,3,null,null,{"$f":"+'R.PROVEEDOR'!G44","v":0},null,{"$f":"_xlfn.IFS(G43=\"SI\",$H$41/$G$44,G43=\"PARCIAL\",($H$41/$G$44)/2,G43=\"NO\",0)","v":{"$error":"#N/A"}}]
[null,null,null,null,null,null,{"$f":"COUNTIFS(G41:G43,\"SI\")+COUNTIFS(G41:G43,\"NO\")+COUNTIFS(G41:G43,\"PARCIAL\")","v":0},"Total",{"$f":"SUMIFS(I41:I43,G41:G43,\"SI\")+SUMIFS(I41:I43,G41:G43,\"PARCIAL\")","v":0}]
[null,null,"Sistema de Gestión de Seguridad y Salud en el trabajo \nSG-SST",1,null,null,{"$f":"+'R.PROVEEDOR'!G45","v":0},20,{"$f":"_xlfn.IFS(G45=\"SI\",$H$45/$G$50,G45=\"PARCIAL\",($H$45/$G$50)/2,G45=\"NO\",0)","v":{"$error":"#N/A"}}]
[null,null,"Sistema de Gestión Antisoborno\nSGAS",1,null,null,{"$f":"+'R.PROVEEDOR'!G46","v":0},null,{"$f":"_xlfn.IFS(G46=\"SI\",$H$45/$G$50,G46=\"PARCIAL\",($H$45/$G$50)/2,G46=\"NO\",0)","v":{"$error":"#N/A"}}]
[null,null,null,2,null,null,{"$f":"+'R.PROVEEDOR'!G47","v":0},null,{"$f":"_xlfn.IFS(G47=\"SI\",$H$45/$G$50,G47=\"PARCIAL\",($H$45/$G$50)/2,G47=\"NO\",0)","v":{"$error":"#N/A"}}]
[null,null,"Sistema de Gestión Ambiental \nSGA",1,null,null,{"$f":"+'R.PROVEEDOR'!G48","v":0},null,{"$f":"_xlfn.IFS(G48=\"SI\",$H$45/$G$50,G48=\"PARCIAL\",($H$45/$G$50)/2,G48=\"NO\",0)","v":{"$error":"#N/A"}}]
[null,null,"Sistema de Gestión Seguridad de la Información\nSGSI",1,null,null,{"$f":"+'R.PROVEEDOR'!G49","v":0},null,{"$f":"_xlfn.IFS(G49=\"SI\",$H$45/$G$50,G49=\"PARCIAL\",($H$45/$G$50)/2,G49=\"NO\",0)","v":{"$error":"#N/A"}}]
[null,null,null,null,null,null,{"$f":"COUNTIFS(G45:G49,\"SI\")+COUNTIFS(G45:G49,\"NO\")+COUNTIFS(G45:G49,\"PARCIAL\")","v":0},"Total",{"$f":"SUMIFS(I45:I49,G45:G49,\"SI\")+SUMIFS(I45:I49,G45:G49,\"PARCIAL\")","v":0}]
[null,"Etapa post-contractual","Oportunidad documentos de trámite",1,null,null,{"$f":"+'R.PROVEEDOR'!G50","v":0},10,{"$f":"_xlfn.IFS(G51=\"SI\",H51,G51=\"PARCIAL\",(H51/2),G51=\"NO\",0)","v":{"$error":"#N/A"}}]
[null,null,null,null,null,null,null,"Total",{"$f":"IFERROR(+I51,0)","v":0}]